[Event "DVM U14 2024"]
[Site "Heidelberg"]
[Date "2024.12.27"]
[Round "1"]
[White "Tran, Felix K H"]
[Black "Varazi, Maxime"]
[Result "0-1"]
[ECO "C78"]
[WhiteElo "1560"]
[BlackElo "1673"]
[Annotator "NA RC"]
[PlyCount "92"]
[EventDate "2024.12.23"]
[EventType "team-tourn"]
[EventRounds "7"]
[EventCountry "GER"]
[SourceTitle "playchess.com"]
[Source "ChessBase"]
[SourceQuality "1"]
[TimeControl "40/5400+30:1800+30"]

1. e4 {[%emt 0:00:17]} e5 {[%emt 0:00:16]} 2. Nf3 {[%emt 0:00:15]} Nc6 {[%emt 0:00:05]} 3. Bb5 {[%emt 0:00:41]} a6 {[%emt 0:00:14]} 4. Ba4 {[%emt 0:00:55]} Nf6 {[%emt 0:00:07]} 5. O-O {[%emt 0:01:47]} b5 {[%emt 0:00:06]} 6. Bb3 {[%emt 0:01:22]} Bc5 {[%emt 0:00:07]} 7. c3 {[%emt 0:04:04]} d6 {[%emt 0:00:06]} 8. Re1 {[%emt 0:06:43]} O-O {[%emt 0:03:57]} 9. h3 {[%emt 0:01:54]} Qe7 {[%emt 0:03:13]} 10. d4 {[%emt 0:03:06]} Bb6 {[%emt 0:00:40]} 11. Bg5 {[%emt 0:02:44]} h6 {[%emt 0:02:51]} 12. Bh4 {[%emt 0:01:44]} Kh7 {[%emt 0:00:29]} 13. Qd3 {[%emt 0:06:27]} Rg8 {[%emt 0:00:42]} 14. g4 {[%emt 0:14:48]} g5 {[%emt 0:06:46]} 15. Bg3 {[%emt 0:02:31]} Kg7 {[%emt 0:02:10]} 16. Nbd2 {[%emt 0:08:30]} Bb7 {[%emt 0:01:37]} 17. Nf1 {[%emt 0:02:26]} exd4 {[%emt 0:05:25]} 18. Nxd4 {[%emt 0:03:09]} Nxd4 {[%emt 0:01:05]} 19. cxd4 {[%emt 0:00:20]} Bxe4 {[%emt 0:01:02]} 20. Qe3 {[%emt 0:03:39]} Qd7 {[%emt 0:00:39]} 21. Nd2 {[%emt 0:03:48]} Rge8 {[%emt 0:03:39]} 22. Nxe4 {[%emt 0:04:15]} Rxe4 {[%emt 0:00:20]} 23. Qf3 {[%emt 0:01:32]} Rae8 {[%emt 0:00:32]} 24. Rxe4 {[%emt 0:03:57]} Rxe4 {[%emt 0:00:11]} 25. Bc2 {[%emt 0:03:08]} Rxd4 {[%emt 0:01:15]} 26. Bf5 {[%emt 0:01:15]} Qe7 {[%emt 0:00:45]} 27. h4 {[%emt 0:05:45]} Nd5 {[%emt 0:01:36]} 28. h5 {[%emt 0:02:04]} Qf6 {[%emt 0:03:55]} 29. Rd1 {[%emt 0:02:04]} Rxd1+ {[%emt 0:01:11]} 30. Qxd1 {[%emt 0:00:04]} Ne7 {[%emt 0:00:20]} 31. Qd3 {[%emt 0:00:31]} Nxf5 {[%emt 0:00:12]} 32. Qxf5 {[%emt 0:00:10]} Qxf5 {[%emt 0:00:09]} 33. gxf5 {[%emt 0:00:09]} Kf6 {[%emt 0:00:05]} 34. Kg2 {[%emt 0:00:57]} Kxf5 {[%emt 0:00:06]} 35. Kf3 {[%emt 0:00:13]} g4+ {[%emt 0:00:09]} 36. Kg2 {[%emt 0:00:21]} Kg5 {[%emt 0:00:05]} 37. Kf1 {[%emt 0:00:47]} Kxh5 {[%emt 0:00:11]} 38. f4 {[%emt 0:00:15]} gxf3 {[%emt 0:00:07]} 39. Bf4 {[%emt 0:00:32]} Kg6 {[%emt 0:00:15]} 40. Bg3 {[%emt 0:00:13]} Kg5 {[%emt 0:00:06]} 41. Be1 {[%emt 0:30:18]} h5 {[%emt 0:30:15]} 42. Bd2+ {[%emt 0:00:30]} Kg4 {[%emt 0:00:11]} 43. Ke1 {[%emt 0:00:18]} h4 {[%emt 0:00:05]} 44. Kf1 {[%emt 0:00:11]} h3 {[%emt 0:00:03]} 45. a3 {[%emt 0:00:14]} h2 {[%emt 0:00:04]} 46. Ke1 {[%emt 0:00:58]} h1=R# {[%emt 0:00:36]} 0-1

[Event "DVM U14 2024"]
[Site "Heidelberg"]
[Date "2024.12.27"]
[Round "1"]
[White "Yang, Sophie"]
[Black "Fischermann, Charlotte"]
[Result "1/2-1/2"]
[ECO "D06"]
[WhiteElo "1547"]
[BlackElo "1644"]
[Annotator "NA RC"]
[PlyCount "104"]
[EventDate "2024.12.23"]
[EventType "team-tourn"]
[EventRounds "7"]
[EventCountry "GER"]
[SourceTitle "playchess.com"]
[Source "ChessBase"]
[SourceQuality "1"]
[TimeControl "40/5400+30:1800+30"]

1. d4 {[%emt 0:00:02]} d5 {[%emt 0:00:06]} 2. c4 {[%emt 0:00:05]} e6 {[%emt 0:00:11]} 3. Nc3 {[%emt 0:00:09]} Nf6 {[%emt 0:00:11]} 4. cxd5 {[%emt 0:00:08]} Nxd5 {[%emt 0:00:41]} 5. e4 {[%emt 0:02:07]} Nb6 {[%emt 0:01:22]} 6. Nf3 {[%emt 0:05:40]} Nc6 {[%emt 0:04:51]} 7. Be2 {[%emt 0:04:02]} Be7 {[%emt 0:01:28]} 8. O-O {[%emt 0:00:58]} O-O {[%emt 0:01:39]} 9. Bf4 {[%emt 0:02:37]} f6 {[%emt 0:01:36]} 10. Bg3 {[%emt 0:08:18]} a6 {[%emt 0:01:35]} 11. a3 {[%emt 0:08:56]} Na5 {[%emt 0:06:32]} 12. b3 {[%emt 0:01:42]} Nc6 {[%emt 0:03:43]} 13. a4 {[%emt 0:05:45]} Bb4 {[%emt 0:05:02]} 14. Na2 {[%emt 0:01:37]} Bd6 {[%emt 0:03:04]} 15. e5 {[%emt 0:02:07]} Be7 {[%emt 0:01:52]} 16. Qd2 {[%emt 0:04:48]} Nd5 {[%emt 0:01:56]} 17. Rab1 {[%emt 0:03:50]} a5 {[%emt 0:01:51]} 18. Rfc1 {[%emt 0:01:33]} f5 {[%emt 0:01:11]} 19. Bb5 {[%emt 0:00:52]} Ncb4 {[%emt 0:00:30]} 20. Nxb4 {[%emt 0:00:31]} Bxb4 {[%emt 0:00:35]} 21. Qc2 {[%emt 0:01:31]} c6 {[%emt 0:04:47]} 22. Bd3 {[%emt 0:02:21]} Bd7 {[%emt 0:02:53]} 23. h3 {[%emt 0:02:50]} Be8 {[%emt 0:00:41]} 24. Bc4 {[%emt 0:04:22]} Bf7 {[%emt 0:01:13]} 25. Bxd5 {[%emt 0:04:37]} Qxd5 {[%emt 0:00:31]} 26. Bf4 {[%emt 0:02:26]} h6 {[%emt 0:01:18]} 27. Bd2 {[%emt 0:01:34]} Bxd2 {[%emt 0:01:05]} 28. Qxd2 {[%emt 0:00:13]} Rfd8 {[%emt 0:01:09]} 29. Qe1 {[%emt 0:02:03]} Qd7 {[%emt 0:00:57]} 30. Rc4 {[%emt 0:02:46]} Qc7 {[%emt 0:00:38]} 31. Rbc1 {[%emt 0:01:52]} Qb6 {[%emt 0:01:13]} 32. Qc3 {[%emt 0:02:24]} Rd5 {[%emt 0:01:25]} 33. b4 {[%emt 0:02:01]} axb4 {[%emt 0:01:14]} 34. Rxb4 {[%emt 0:00:31]} Qa6 {[%emt 0:01:25]} 35. Rcb1 {[%emt 0:01:01]} Qa5 {[%emt 0:02:01]} 36. Qc4 {[%emt 0:00:39]} Bh5 {[%emt 0:01:24]} 37. Rxb7 {[%emt 0:00:38]} Qxa4 {[%emt 0:00:57]} 38. Rb8+ {[%emt 0:00:44]} Kh7 {[%emt 0:00:14]} 39. Qxa4 {[%emt 0:01:30]} Rxa4 {[%emt 0:00:09]} 40. Rc8 {[%emt 0:00:37]} Bxf3 {[%emt 0:00:21]} 41. gxf3 {[%emt 0:30:05]} Raxd4 {[%emt 0:30:59]} 42. Rxc6 {[%emt 0:00:30]} Rxe5 {[%emt 0:00:26]} 43. Rc7 {[%emt 0:00:35]} Rd8 {[%emt 0:00:17]} 44. Rbb7 {[%emt 0:00:21]} Rg8 {[%emt 0:00:10]} 45. Re7 {[%emt 0:00:12]} Kg6 {[%emt 0:01:21]} 46. Kg2 {[%emt 0:00:45]} Re1 {[%emt 0:00:41]} 47. f4 {[%emt 0:00:15]} Re4 {[%emt 0:00:54]} 48. Kg3 {[%emt 0:00:16]} h5 {[%emt 0:00:39]} 49. h4 {[%emt 0:00:14]} Kf6 {[%emt 0:02:19]} 50. f3 {[%emt 0:00:27]} Re2 {[%emt 0:00:23]} 51. Rf7+ {[%emt 0:00:19]} Kg6 {[%emt 0:00:43]} 52. Rfe7 {[%emt 0:00:16]} Kf6 {[%emt 0:00:42]} 1/2-1/2

[Event "DVM U14 2024"]
[Site "Heidelberg"]
[Date "2024.12.27"]
[Round "1"]
[White "Spielvogel, Oliver"]
[Black "Neumeier, Valentina"]
[Result "0-1"]
[ECO "D02"]
[WhiteElo "1543"]
[BlackElo "1877"]
[Annotator "NA RC"]
[PlyCount "168"]
[EventDate "2024.12.23"]
[EventType "team-tourn"]
[EventRounds "7"]
[EventCountry "GER"]
[SourceTitle "playchess.com"]
[Source "ChessBase"]
[SourceQuality "1"]
[TimeControl "40/5400+30:1800+30"]

1. d4 {[%emt 0:00:02]} d5 {[%emt 0:00:05]} 2. Nf3 {[%emt 0:00:06]} Nf6 {[%emt 0:00:13]} 3. Bf4 {[%emt 0:00:17]} c5 {[%emt 0:02:12]} 4. e3 {[%emt 0:00:13]} e6 {[%emt 0:01:40]} 5. c3 {[%emt 0:00:07]} Qb6 {[%emt 0:04:39]} 6. Qc2 {[%emt 0:01:02]} Nc6 {[%emt 0:02:33]} 7. Bd3 {[%emt 0:00:19]} Be7 {[%emt 0:02:49]} 8. O-O {[%emt 0:00:18]} c4 {[%emt 0:03:23]} 9. Be2 {[%emt 0:00:08]} Nh5 {[%emt 0:08:38]} 10. Bg3 {[%emt 0:03:19]} Nxg3 {[%emt 0:00:07]} 11. hxg3 {[%emt 0:00:04]} O-O {[%emt 0:01:17]} 12. Nbd2 {[%emt 0:00:14]} Qc7 {[%emt 0:03:21]} 13. e4 {[%emt 0:00:15]} b5 {[%emt 0:02:25]} 14. e5 {[%emt 0:00:18]} b4 {[%emt 0:01:40]} 15. b3 {[%emt 0:01:30]} bxc3 {[%emt 0:05:01]} 16. Qxc3 {[%emt 0:00:10]} Bb4 {[%emt 0:02:16]} 17. Qc2 {[%emt 0:00:27]} Qb6 {[%emt 0:10:35]} 18. bxc4 {[%emt 0:00:54]} Nxd4 {[%emt 0:01:05]} 19. Nxd4 {[%emt 0:00:15]} Qxd4 {[%emt 0:00:19]} 20. Nf3 {[%emt 0:00:07]} Qc5 {[%emt 0:03:19]} 21. Bd3 {[%emt 0:00:39]} g6 {[%emt 0:03:15]} 22. cxd5 {[%emt 0:01:12]} Qxc2 {[%emt 0:01:56]} 23. Bxc2 {[%emt 0:00:13]} exd5 {[%emt 0:00:30]} 24. Rfd1 {[%emt 0:00:32]} Be6 {[%emt 0:03:25]} 25. Bb3 {[%emt 0:00:18]} Rfd8 {[%emt 0:01:57]} 26. Nd4 {[%emt 0:00:26]} Rac8 {[%emt 0:03:50]} 27. Rac1 {[%emt 0:00:33]} Bc5 {[%emt 0:09:29]} 28. Nb5 {[%emt 0:01:43]} a6 {[%emt 0:02:24]} 29. Nc3 {[%emt 0:00:13]} Ba3 {[%emt 0:02:26]} 30. Rc2 {[%emt 0:03:12]} d4 {[%emt 0:02:39]} 31. Nb1 {[%emt 0:01:28]} Bxb3 {[%emt 0:06:09]} 32. Rxc8 {[%emt 0:00:12]} Rxc8 {[%emt 0:00:06]} 33. axb3 {[%emt 0:00:20]} Bb2 {[%emt 0:01:25]} 34. Nd2 {[%emt 0:00:35]} Kf8 {[%emt 0:04:14]} 35. Nf3 {[%emt 0:00:29]} Rd8 {[%emt 0:00:43]} 36. Rd3 {[%emt 0:01:15]} Ke7 {[%emt 0:02:15]} 37. Ng5 {[%emt 0:00:46]} h6 {[%emt 0:01:30]} 38. Ne4 {[%emt 0:00:12]} Rd5 {[%emt 0:01:29]} 39. f4 {[%emt 0:00:32]} h5 {[%emt 0:01:35]} 40. Kf2 {[%emt 0:00:10]} Bc1 {[%emt 0:00:54]} 41. Nc3 {[%emt 0:32:21]} Be3+ {[%emt 0:08:24]} 42. Kf3 {[%emt 0:00:00]} Ra5 {[%emt 0:04:51]} 43. Nd1 {[%emt 0:00:00]} Bg1 {[%emt 0:01:13]} 44. Nf2 {[%emt 0:00:00]} Ra2 {[%emt 0:01:38]} 45. Nh3 {[%emt 0:00:00]} Be3 {[%emt 0:00:45]} 46. Rd1 {[%emt 0:00:00]} Rb2 {[%emt 0:00:26]} 47. Rd3 {[%emt 0:00:00]} a5 {[%emt 0:00:03]} 48. Ke4 {[%emt 0:00:00]} Rxg2 {[%emt 0:00:49]} 49. Kf3 {[%emt 0:00:00]} Rh2 {[%emt 0:05:21]} 50. Ng5 {[%emt 0:00:00]} Rf2+ {[%emt 0:01:35]} 51. Ke4 {[%emt 0:00:00]} h4 {[%emt 0:00:15]} 52. gxh4 {[%emt 0:00:00]} Rxf4+ {[%emt 0:00:27]} 53. Kd5 {[%emt 0:00:00]} Rxh4 {[%emt 0:01:20]} 54. Nf3 {[%emt 0:00:00]} Rf4 {[%emt 0:00:50]} 55. Ng5 {[%emt 0:00:00]} Rf5 {[%emt 0:01:18]} 56. Ne4 {[%emt 0:00:00]} g5 {[%emt 0:01:37]} 57. Nd6 {[%emt 0:00:00]} Rf1 {[%emt 0:00:51]} 58. Kc5 {[%emt 0:00:00]} g4 {[%emt 0:01:06]} 59. Ne4 {[%emt 0:00:00]} Rf3 {[%emt 0:01:05]} 60. Kb5 {[%emt 0:00:00]} g3 {[%emt 0:00:52]} 61. Nxg3 {[%emt 0:00:00]} Rxg3 {[%emt 0:00:05]} 62. Kxa5 {[%emt 0:00:00]} Rg5 {[%emt 0:00:29]} 63. Kb4 {[%emt 0:00:00]} Rxe5 {[%emt 0:00:09]} 64. Kc4 {[%emt 0:00:00]} f5 {[%emt 0:00:23]} 65. b4 {[%emt 0:00:00]} f4 {[%emt 0:00:23]} 66. b5 {[%emt 0:00:00]} Kd7 {[%emt 0:00:15]} 67. Rb3 {[%emt 0:00:00]} Kc7 {[%emt 0:00:24]} 68. b6+ {[%emt 0:00:00]} Kb7 {[%emt 0:00:04]} 69. Rb1 {[%emt 0:00:00]} f3 {[%emt 0:00:13]} 70. Kd3 {[%emt 0:00:00]} f2 {[%emt 0:00:15]} 71. Ke2 {[%emt 0:00:00]} Re6 {[%emt 0:00:07]} 72. Rf1 {[%emt 0:00:08]} Kxb6 {[%emt 0:00:19]} 73. Kd3 {[%emt 0:00:06]} Rg6 {[%emt 0:00:39]} 74. Rb1+ {[%emt 0:00:19]} Kc5 {[%emt 0:00:11]} 75. Ra1 {[%emt 0:00:24]} Rg1 {[%emt 0:00:16]} 76. Ra5+ {[%emt 0:00:08]} Kb4 {[%emt 0:00:18]} 77. Rf5 {[%emt 0:00:41]} f1=Q+ {[%emt 0:00:08]} 78. Rxf1 {[%emt 0:00:05]} Rxf1 {[%emt 0:00:06]} 79. Ke2 {[%emt 0:00:38]} Rf2+ {[%emt 0:00:13]} 80. Kd1 {[%emt 0:00:13]} Bh6 {[%emt 0:00:34]} 81. Ke1 {[%emt 0:00:08]} Ra2 {[%emt 0:00:08]} 82. Kd1 {[%emt 0:00:05]} Kc3 {[%emt 0:00:07]} 83. Ke1 {[%emt 0:00:18]} Kd3 {[%emt 0:00:03]} 84. Kf1 {[%emt 0:00:14]} Ke3 {[%emt 0:00:04]} 0-1

[Event "DVM U14 2024"]
[Site "Heidelberg"]
[Date "2024.12.27"]
[Round "1"]
[White "Zielke, Constantin"]
[Black "Muller, Anker"]
[Result "0-1"]
[ECO "B16"]
[WhiteElo "1543"]
[BlackElo "1744"]
[Annotator "NA RC"]
[PlyCount "72"]
[EventDate "2024.12.23"]
[EventType "team-tourn"]
[EventRounds "7"]
[EventCountry "GER"]
[SourceTitle "playchess.com"]
[Source "ChessBase"]
[SourceQuality "1"]
[TimeControl "40/5400+30:1800+30"]

1. e4 {[%emt 0:00:03]} c6 {[%emt 0:00:00]} 2. d4 {[%emt 0:00:10]} d5 {[%emt 0:00:04]} 3. Nc3 {[%emt 0:00:37]} dxe4 {[%emt 0:00:05]} 4. Nxe4 {[%emt 0:00:07]} Nf6 {[%emt 0:00:10]} 5. Nxf6+ {[%emt 0:01:45]} gxf6 {[%emt 0:00:12]} 6. Nf3 {[%emt 0:00:11]} Bf5 {[%emt 0:01:57]} 7. Be3 {[%emt 0:02:25]} Nd7 {[%emt 0:00:51]} 8. Bc4 {[%emt 0:01:58]} e6 {[%emt 0:04:26]} 9. c3 {[%emt 0:07:42]} Qc7 {[%emt 0:00:33]} 10. Qb3 {[%emt 0:04:43]} O-O-O {[%emt 0:01:56]} 11. Be2 {[%emt 0:14:34]} Nb6 {[%emt 0:26:32]} 12. a4 {[%emt 0:06:42]} Nd5 {[%emt 0:08:13]} 13. Bd2 {[%emt 0:02:16]} a5 {[%emt 0:03:45]} 14. O-O {[%emt 0:35:50]} e5 {[%emt 0:22:48]} 15. c4 {[%emt 0:02:28]} Nb4 {[%emt 0:01:47]} 16. d5 {[%emt 0:02:33]} c5 {[%emt 0:06:22]} 17. Bxb4 {[%emt 0:00:54]} cxb4 {[%emt 0:00:40]} 18. Rfd1 {[%emt 0:04:45]} Bc5 {[%emt 0:03:09]} 19. Rac1 {[%emt 0:01:16]} Qb6 {[%emt 0:04:39]} 20. Rf1 {[%emt 0:03:27]} h5 {[%emt 0:00:39]} 21. Nh4 {[%emt 0:01:34]} Bg6 {[%emt 0:05:14]} 22. Nxg6 {[%emt 0:01:09]} fxg6 {[%emt 0:00:02]} 23. Qd3 {[%emt 0:00:47]} f5 {[%emt 0:00:18]} 24. Qg3 {[%emt 0:00:46]} Qf6 {[%emt 0:00:45]} 25. Rfe1 {[%emt 0:00:58]} h4 {[%emt 0:01:23]} 26. Qh3 {[%emt 0:00:44]} g5 {[%emt 0:00:57]} 27. b3 {[%emt 0:00:33]} Kb8 {[%emt 0:04:04]} 28. Qd3 {[%emt 0:00:27]} e4 {[%emt 0:00:28]} 29. Qd2 {[%emt 0:00:21]} Rde8 {[%emt 0:01:00]} 30. Bf1 {[%emt 0:00:26]} f4 {[%emt 0:00:41]} 31. Rc2 {[%emt 0:00:52]} e3 {[%emt 0:00:35]} 32. fxe3 {[%emt 0:00:07]} Bxe3+ {[%emt 0:00:15]} 33. Rxe3 {[%emt 0:00:07]} fxe3 {[%emt 0:00:35]} 34. Qe2 {[%emt 0:00:22]} Rhf8 {[%emt 0:00:36]} 35. h3 {[%emt 0:01:22]} Qd4 {[%emt 0:00:08]} 36. Kh1 {[%emt 0:00:56]} Rf2 {[%emt 0:00:15]} 0-1

[Event "DVM U14 2024"]
[Site "Heidelberg"]
[Date "2024.12.27"]
[Round "1"]
[White "Draxler, Henning"]
[Black "Ahryzkov, Ivan"]
[Result "1/2-1/2"]
[ECO "C50"]
[WhiteElo "1480"]
[BlackElo "1813"]
[Annotator "NA RC"]
[PlyCount "20"]
[EventDate "2024.12.23"]
[EventType "team-tourn"]
[EventRounds "7"]
[EventCountry "GER"]
[SourceTitle "playchess.com"]
[Source "ChessBase"]
[SourceQuality "1"]
[TimeControl "40/5400+30:1800+30"]

1. e4 {[%emt 0:00:04]} e5 {[%emt 0:00:05]} 2. Nf3 {[%emt 0:00:10]} Nc6 {[%emt 0:00:04]} 3. Bc4 {[%emt 0:00:23]} Bc5 {[%emt 0:01:28]} 4. Nc3 {[%emt 0:01:16]} Nf6 {[%emt 0:00:42]} 5. d3 {[%emt 0:00:39]} h6 {[%emt 0:00:26]} 6. Be3 {[%emt 0:01:15]} Bb6 {[%emt 0:00:14]} 7. Qd2 {[%emt 0:01:41]} d6 {[%emt 0:01:07]} 8. h3 {[%emt 0:00:58]} Be6 {[%emt 0:00:20]} 9. Nd5 {[%emt 0:03:55]} Bxd5 {[%emt 0:18:57]} 10. exd5 {[%emt 0:12:24]} Ne7 {[%emt 0:01:05]} 1/2-1/2

[Event "DVM U14 2024"]
[Site "Heidelberg"]
[Date "2024.12.27"]
[Round "1"]
[White "Petzold, Gustav"]
[Black "Bemmann, Carlo"]
[Result "0-1"]
[ECO "B12"]
[WhiteElo "935"]
[BlackElo "1757"]
[Annotator "NA RC"]
[PlyCount "58"]
[EventDate "2024.12.23"]
[EventType "team-tourn"]
[EventRounds "7"]
[EventCountry "GER"]
[SourceTitle "playchess.com"]
[Source "ChessBase"]
[SourceQuality "1"]
[TimeControl "40/5400+30:1800+30"]

1. e4 {[%emt 0:00:03]} c6 {[%emt 0:00:11]} 2. d4 {[%emt 0:00:06]} d5 {[%emt 0:00:06]} 3. e5 {[%emt 0:01:26]} Bf5 {[%emt 0:00:08]} 4. Nf3 {[%emt 0:00:16]} e6 {[%emt 0:00:29]} 5. Nc3 {[%emt 0:00:23]} Nd7 {[%emt 0:01:34]} 6. Bd3 {[%emt 0:00:18]} Bxd3 {[%emt 0:01:08]} 7. Qxd3 {[%emt 0:00:10]} Ne7 {[%emt 0:05:42]} 8. Bg5 {[%emt 0:02:09]} h6 {[%emt 0:04:54]} 9. Bh4 {[%emt 0:00:51]} Qc7 {[%emt 0:01:11]} 10. O-O {[%emt 0:00:37]} Nf5 {[%emt 0:01:15]} 11. Rfe1 {[%emt 0:06:30]} g5 {[%emt 0:05:21]} 12. Bg3 {[%emt 0:01:48]} a6 {[%emt 0:05:37]} 13. a4 {[%emt 0:00:45]} Bb4 {[%emt 0:01:16]} 14. h3 {[%emt 0:02:18]} c5 {[%emt 0:01:37]} 15. Bh2 {[%emt 0:02:44]} cxd4 {[%emt 0:01:51]} 16. Nxd4 {[%emt 0:00:20]} Nc5 {[%emt 0:01:03]} 17. Qd2 {[%emt 0:03:41]} Ne7 {[%emt 0:09:28]} 18. f3 {[%emt 0:02:32]} Nd7 {[%emt 0:02:42]} 19. f4 {[%emt 0:05:07]} Qb6 {[%emt 0:02:41]} 20. Bg3 {[%emt 0:03:52]} Nc5 {[%emt 0:03:15]} 21. Qe2 {[%emt 0:04:37]} Ne4 {[%emt 0:01:46]} 22. Bf2 {[%emt 0:05:26]} Qc7 {[%emt 0:02:33]} 23. fxg5 {[%emt 0:02:48]} Nxc3 {[%emt 0:01:31]} 24. Qf3 {[%emt 0:09:28]} Ne4 {[%emt 0:01:18]} 25. Rf1 {[%emt 0:00:48]} Nxg5 {[%emt 0:01:52]} 26. Qf4 {[%emt 0:01:11]} Ng6 {[%emt 0:01:30]} 27. Qf6 {[%emt 0:01:36]} Be7 {[%emt 0:03:24]} 28. Qg7 {[%emt 0:01:58]} O-O-O {[%emt 0:00:50]} 29. Be3 {[%emt 0:04:11]} Rdg8 {[%emt 0:00:48]} 0-1

[Event "DVM U14 2024"]
[Site "Heidelberg"]
[Date "2024.12.27"]
[Round "2"]
[White "Mohylnyi, Stepan"]
[Black "Kommessin, Felix"]
[Result "1-0"]
[ECO "C45"]
[WhiteElo "2180"]
[BlackElo "1757"]
[Annotator "RC"]
[PlyCount "51"]
[EventDate "2024.12.23"]
[EventType "team-tourn"]
[EventRounds "7"]
[EventCountry "GER"]
[SourceTitle "playchess.com"]
[Source "ChessBase"]
[SourceQuality "1"]
[TimeControl "40/5400+30:1800+30"]

1. e4 {[%emt 0:00:02]} e5 {[%emt 0:00:04]} 2. Nf3 {[%emt 0:00:03]} Nc6 {[%emt 0:00:05]} 3. d4 {[%emt 0:00:02]} exd4 {[%emt 0:00:07]} 4. Nxd4 {[%emt 0:00:02]} Nf6 {[%emt 0:00:20]} 5. Nxc6 {[%emt 0:00:06]} bxc6 {[%emt 0:00:05]} 6. e5 {[%emt 0:00:02]} Nd5 {[%emt 0:00:58]} 7. c4 {[%emt 0:00:01]} Nb6 {[%emt 0:00:18]} 8. Bd3 {[%emt 0:00:04]} Bb4+ {[%emt 0:00:47]} 9. Nc3 {[%emt 0:00:09]} Bxc3+ {[%emt 0:01:01]} 10. bxc3 {[%emt 0:00:06]} O-O {[%emt 0:03:46]} 11. O-O {[%emt 0:00:19]} f5 {[%emt 0:04:46]} 12. c5 {[%emt 0:00:47]} Nd5 {[%emt 0:01:22]} 13. Bc4 {[%emt 0:00:01]} Bb7 {[%emt 0:00:48]} 14. Rb1 {[%emt 0:00:02]} Qc8 {[%emt 0:04:42]} 15. Qa4 {[%emt 0:01:58]} Kh8 {[%emt 0:05:40]} 16. Qa5 {[%emt 0:01:49]} d6 {[%emt 0:09:48]} 17. cxd6 {[%emt 0:00:18]} Nb6 {[%emt 0:01:29]} 18. Bd3 {[%emt 0:01:25]} cxd6 {[%emt 0:01:02]} 19. exd6 {[%emt 0:00:04]} Qd7 {[%emt 0:10:59]} 20. Bf4 {[%emt 0:00:14]} Nd5 {[%emt 0:01:07]} 21. Be5 {[%emt 0:00:05]} Bc8 {[%emt 0:08:04]} 22. c4 {[%emt 0:00:18]} Nf6 {[%emt 0:01:22]} 23. Qc7 {[%emt 0:00:20]} Qxc7 {[%emt 0:01:53]} 24. dxc7 {[%emt 0:00:02]} Nd7 {[%emt 0:00:12]} 25. Bd6 {[%emt 0:00:01]} Rf6 {[%emt 0:01:51]} 26. c5 {[%emt 0:00:01]} 1-0

[Event "DVM U14 2024"]
[Site "Heidelberg"]
[Date "2024.12.27"]
[Round "2"]
[White "Schwitkowski, Luka"]
[Black "Noennig, Jakob"]
[Result "1-0"]
[ECO "C50"]
[WhiteElo "2070"]
[BlackElo "2065"]
[Annotator "RC"]
[PlyCount "103"]
[EventDate "2024.12.23"]
[EventType "team-tourn"]
[EventRounds "7"]
[EventCountry "GER"]
[SourceTitle "playchess.com"]
[Source "ChessBase"]
[SourceQuality "1"]
[TimeControl "40/5400+30:1800+30"]

1. e4 {[%emt 0:00:03]} e5 {[%emt 0:00:07]} 2. Nf3 {[%emt 0:00:05]} Nc6 {[%emt 0:00:09]} 3. Bc4 {[%emt 0:00:04]} Bc5 {[%emt 0:00:13]} 4. d3 {[%emt 0:00:06]} Nf6 {[%emt 0:00:29]} 5. a4 {[%emt 0:00:19]} a6 {[%emt 0:02:29]} 6. O-O {[%emt 0:00:04]} O-O {[%emt 0:01:18]} 7. Be3 {[%emt 0:00:57]} Ba7 {[%emt 0:02:51]} 8. Nbd2 {[%emt 0:00:36]} d6 {[%emt 0:01:23]} 9. c3 {[%emt 0:00:47]} Ne7 {[%emt 0:05:38]} 10. Bxa7 {[%emt 0:15:21]} Rxa7 {[%emt 0:00:02]} 11. Re1 {[%emt 0:00:16]} Ng6 {[%emt 0:03:37]} 12. b4 {[%emt 0:03:41]} c6 {[%emt 0:15:49]} 13. Qc2 {[%emt 0:08:04]} Nf4 {[%emt 0:07:56]} 14. g3 {[%emt 0:03:43]} Nh3+ {[%emt 0:02:19]} 15. Kg2 {[%emt 0:00:05]} Ng4 {[%emt 0:00:05]} 16. Re2 {[%emt 0:00:28]} Qf6 {[%emt 0:21:37]} 17. Qa2 {[%emt 0:09:56]} Qg6 {[%emt 0:05:22]} 18. Nh4 {[%emt 0:15:55]} Qh5 {[%emt 0:05:35]} 19. Ndf3 {[%emt 0:01:55]} g5 {[%emt 0:15:13]} 20. Nf5 {[%emt 0:00:38]} Bxf5 {[%emt 0:00:06]} 21. exf5 {[%emt 0:00:08]} Nh6 {[%emt 0:00:07]} 22. Nxe5 {[%emt 0:26:13]} dxe5 {[%emt 0:01:51]} 23. Rxe5 {[%emt 0:01:35]} g4 {[%emt 0:05:17]} 24. Kh1 {[%emt 0:06:53]} b6 {[%emt 0:01:24]} 25. Rae1 {[%emt 0:00:14]} Ng5 {[%emt 0:00:27]} 26. f6 {[%emt 0:02:37]} Qg6 {[%emt 0:00:08]} 27. Qd2 {[%emt 0:00:32]} Nf3 {[%emt 0:00:19]} 28. Qf4 {[%emt 0:00:12]} b5 {[%emt 0:00:42]} 29. Re8 {[%emt 0:00:05]} Ra8 {[%emt 0:00:20]} 30. Rxa8 {[%emt 0:00:48]} Rxa8 {[%emt 0:00:05]} 31. axb5 {[%emt 0:00:26]} Nxe1 {[%emt 0:00:16]} 32. b6 {[%emt 0:00:08]} Kh8 {[%emt 0:01:29]} 33. b7 {[%emt 0:00:01]} Re8 {[%emt 0:00:32]} 34. b8=Q {[%emt 0:01:15]} Rxb8 {[%emt 0:00:05]} 35. Qxb8+ {[%emt 0:00:20]} Ng8 {[%emt 0:00:03]} 36. Qe8 {[%emt 0:00:20]} Nf3 {[%emt 0:01:01]} 37. Bxf7 {[%emt 0:00:06]} Qg5 {[%emt 0:00:02]} 38. Kg2 {[%emt 0:01:01]} Ne1+ {[%emt 0:02:26]} 39. Qxe1 {[%emt 0:00:51]} Qxf6 {[%emt 0:00:06]} 40. Bc4 {[%emt 0:00:49]} Qf3+ {[%emt 0:00:37]} 41. Kg1 {[%emt 0:30:05]} Nf6 {[%emt 0:30:21]} 42. Qe3 {[%emt 0:00:32]} Qf5 {[%emt 0:00:56]} 43. Bxa6 {[%emt 0:00:30]} Nd5 {[%emt 0:00:12]} 44. Qd4+ {[%emt 0:00:07]} Kg8 {[%emt 0:00:07]} 45. Bc4 {[%emt 0:00:05]} Qf3 {[%emt 0:01:03]} 46. Qf4 {[%emt 0:01:02]} Qd1+ {[%emt 0:00:44]} 47. Kg2 {[%emt 0:00:01]} Kg7 {[%emt 0:00:00]} 48. Bxd5 {[%emt 0:00:00]} cxd5 {[%emt 0:00:00]} 49. Qg5+ {[%emt 0:00:00]} Kf8 {[%emt 0:00:00]} 50. Qxd5 {[%emt 0:00:00]} h5 {[%emt 0:00:00]} 51. b5 {[%emt 0:00:00]} h4 {[%emt 0:00:00]} 52. gxh4 {[%emt 0:00:00]} 1-0